[Event "EYCC Girls-U16 2019"]
[Site "Bratislava"]
[Date "2019.08.02"]
[Round "1.1"]
[White "Kaygisiz, Ilayda"]
[Black "Krasteva, Beloslava"]
[Result "0-1"]
[ECO "B20"]
[WhiteElo "1775"]
[BlackElo "2327"]
[Annotator "NA"]
[PlyCount "98"]
[EventDate "2019.08.02"]
[EventType "swiss"]
[EventCountry "SVK"]
[SourceTitle "playchess.com"]
[Source "ChessBase"]
[SourceQuality "1"]
[TimeControl "40/5400+30:1800+30"]

1. e4 {[%emt 0:00:00]} c5 {[%emt 0:00:00]} 2. b3 {[%emt 0:00:00]} Nc6 {[%emt 0:02:39]} 3. Nf3 {[%emt 0:01:53]} e5 {[%emt 0:02:23]} 4. Bb5 {[%emt 0:00:56]} Nge7 {[%emt 0:01:36]} 5. Bb2 {[%emt 0:01:00]} d6 {[%emt 0:00:19]} 6. c3 {[%emt 0:01:59]} a6 {[%emt 0:01:53]} 7. Bxc6+ {[%emt 0:00:16]} Nxc6 {[%emt 0:00:34]} 8. d4 {[%emt 0:05:12]} exd4 {[%emt 0:11:46]} 9. cxd4 {[%emt 0:00:01]} Bg4 {[%emt 0:01:39]} 10. d5 {[%emt 0:03:35]} Ne5 {[%emt 0:03:30]} 11. Bxe5 {[%emt 0:00:54]} dxe5 {[%emt 0:00:05]} 12. h3 {[%emt 0:00:26]} Bh5 {[%emt 0:02:52]} 13. g4 {[%emt 0:02:29]} Bg6 {[%emt 0:00:44]} 14. Qd3 {[%emt 0:00:05]} Bd6 {[%emt 0:00:59]} 15. Nbd2 {[%emt 0:02:21]} b5 {[%emt 0:01:52]} 16. a4 {[%emt 0:01:46]} O-O {[%emt 0:02:23]} 17. O-O {[%emt 0:01:57]} Qd7 {[%emt 0:02:50]} 18. Nh4 {[%emt 0:03:14]} Rfc8 {[%emt 0:03:50]} 19. Nf5 {[%emt 0:08:33]} Bf8 {[%emt 0:02:37]} 20. Rfd1 {[%emt 0:03:13]} f6 {[%emt 0:01:44]} 21. Kg2 {[%emt 0:02:41]} Bf7 {[%emt 0:04:21]} 22. Rdc1 {[%emt 0:03:17]} g6 {[%emt 0:02:57]} 23. Ne3 {[%emt 0:01:40]} Bd6 {[%emt 0:06:17]} 24. h4 {[%emt 0:05:36]} Be8 {[%emt 0:02:45]} 25. Nf3 {[%emt 0:05:44]} Qf7 {[%emt 0:03:29]} 26. g5 {[%emt 0:04:31]} Bd7 {[%emt 0:01:44]} 27. Nf1 {[%emt 0:11:36]} Rf8 {[%emt 0:01:54]} 28. axb5 {[%emt 0:07:02]} axb5 {[%emt 0:01:39]} 29. gxf6 {[%emt 0:01:50]} Qxf6 {[%emt 0:01:46]} 30. N1h2 {[%emt 0:00:30]} h6 {[%emt 0:06:49]} 31. Qe3 {[%emt 0:02:48]} Kh7 {[%emt 0:00:41]} 32. Rxa8 {[%emt 0:03:43]} Rxa8 {[%emt 0:00:02]} 33. Rxc5 {[%emt 0:02:33]} Bxc5 {[%emt 0:01:27]} 34. Qxc5 {[%emt 0:00:01]} Re8 {[%emt 0:02:48]} 35. Qc7 {[%emt 0:00:24]} Re7 {[%emt 0:01:14]} 36. Qd8 {[%emt 0:02:21]} Kg7 {[%emt 0:01:26]} 37. b4 {[%emt 0:01:45]} Qd6 {[%emt 0:02:06]} 38. Kg3 {[%emt 0:00:36]} Re8 {[%emt 0:01:22]} 39. Qa5 {[%emt 0:00:26]} Rc8 {[%emt 0:02:40]} 40. Qa7 {[%emt 0:00:00]} Rc4 {[%emt 0:00:00]} 41. Nd2 {[%emt 0:06:35]} Rxb4 {[%emt 0:09:45]} 42. Ng4 {[%emt 0:00:32]} Ra4 {[%emt 0:01:10]} 43. Qb7 {[%emt 0:00:05]} h5 {[%emt 0:02:24]} 44. Ne3 {[%emt 0:00:10]} Kf6 {[%emt 0:04:01]} 45. Nb3 {[%emt 0:01:31]} Ke7 {[%emt 0:05:41]} 46. Kg2 {[%emt 0:03:52]} Rxe4 {[%emt 0:03:22]} 47. Na5 {[%emt 0:01:34]} Kf6 {[%emt 0:06:24]} 48. Qa8 {[%emt 0:02:39]} Kg7 {[%emt 0:00:18]} 49. Qd8 {[%emt 0:00:43]} Bh3+ {[%emt 0:00:57]} 0-1

[Event "EYCC Girls-U16 2019"]
[Site "Bratislava"]
[Date "2019.08.02"]
[Round "1.2"]
[White "Bulatova, Kamaliya"]
[Black "Garau, Francesca"]
[Result "1/2-1/2"]
[ECO "D34"]
[WhiteElo "2157"]
[BlackElo "1835"]
[Annotator "ChessBase"]
[PlyCount "169"]
[EventDate "2019.08.02"]
[EventType "swiss"]
[EventCountry "SVK"]
[SourceTitle "playchess.com"]
[Source "ChessBase"]
[SourceQuality "1"]
[TimeControl "40/5400+30:1800+30"]

1. d4 {[%emt 0:00:00]} d5 {[%emt 0:00:00]} 2. c4 {[%emt 0:00:00]} e6 {[%emt 0:00:09]} 3. Nc3 {[%emt 0:00:00]} c5 {[%emt 0:00:17]} 4. cxd5 {[%emt 0:01:23]} exd5 {[%emt 0:00:18]} 5. Nf3 {[%emt 0:00:04]} Nc6 {[%emt 0:00:37]} 6. g3 {[%emt 0:00:21]} Nf6 {[%emt 0:00:29]} 7. Bg2 {[%emt 0:00:05]} Be7 {[%emt 0:00:26]} 8. O-O {[%emt 0:00:05]} O-O {[%emt 0:00:17]} 9. dxc5 {[%emt 0:00:56]} Bxc5 {[%emt 0:03:48]} 10. a3 {[%emt 0:03:48]} a5 {[%emt 0:09:34]} 11. Bg5 {[%emt 0:12:41]} d4 {[%emt 0:06:49]} 12. Bxf6 {[%emt 0:05:27]} Qxf6 {[%emt 0:00:57]} 13. Ne4 {[%emt 0:00:11]} Qe7 {[%emt 0:01:44]} 14. Nxc5 {[%emt 0:00:31]} Qxc5 {[%emt 0:00:21]} 15. Rc1 {[%emt 0:00:19]} Qb6 {[%emt 0:01:36]} 16. Qc2 {[%emt 0:09:54]} h6 {[%emt 0:06:32]} 17. Rfd1 {[%emt 0:05:30]} Rd8 {[%emt 0:06:10]} 18. Ne1 {[%emt 0:11:22]} Bg4 {[%emt 0:10:43]} 19. Rd2 {[%emt 0:11:33]} d3 {[%emt 0:09:50]} 20. Rxd3 {[%emt 0:13:44]} Nd4 {[%emt 0:03:59]} 21. Qc7 {[%emt 0:02:22]} Nxe2+ {[%emt 0:07:35]} 22. Kf1 {[%emt 0:01:27]} Qf6 {[%emt 0:06:29]} 23. Rc4 {[%emt 0:03:21]} Nd4 {[%emt 0:10:54]} 24. Rcxd4 {[%emt 0:05:14]} Rxd4 {[%emt 0:00:52]} 25. Re3 {[%emt 0:00:49]} Rd2 {[%emt 0:04:03]} 26. Bf3 {[%emt 0:00:15]} Bh3+ {[%emt 0:01:59]} 27. Kg1 {[%emt 0:00:04]} Qxb2 {[%emt 0:01:09]} 28. Qxb7 {[%emt 0:03:59]} Qxb7 {[%emt 0:03:55]} 29. Bxb7 {[%emt 0:00:04]} Rb8 {[%emt 0:00:33]} 30. Bc6 {[%emt 0:01:41]} Rbb2 {[%emt 0:01:05]} 31. g4 {[%emt 0:01:20]} Rxf2 {[%emt 0:00:48]} 32. Rxh3 {[%emt 0:00:19]} Rfe2 {[%emt 0:00:49]} 33. Kf1 {[%emt 0:00:12]} Rf2+ {[%emt 0:00:11]} 34. Kg1 {[%emt 0:00:04]} Rfe2 {[%emt 0:00:14]} 35. Kf1 {[%emt 0:00:08]} Rxh2 {[%emt 0:00:32]} 36. Rxh2 {[%emt 0:01:35]} Rxh2 {[%emt 0:00:06]} 37. Bg2 {[%emt 0:00:02]} Rh4 {[%emt 0:00:22]} 38. Bf3 {[%emt 0:00:04]} f5 {[%emt 0:00:58]} 39. gxf5 {[%emt 0:02:41]} Rf4 {[%emt 0:00:11]} 40. Kg2 {[%emt 0:00:00]} Rxf5 {[%emt 0:00:00]} 41. Nc2 {[%emt 0:00:22]} Rf4 {[%emt 0:03:48]} 42. Bc6 {[%emt 0:01:49]} g5 {[%emt 0:01:14]} 43. a4 {[%emt 0:00:28]} Kg7 {[%emt 0:00:50]} 44. Ne3 {[%emt 0:00:06]} h5 {[%emt 0:02:32]} 45. Bb5 {[%emt 0:00:33]} Rf8 {[%emt 0:01:13]} 46. Nc4 {[%emt 0:03:36]} Ra8 {[%emt 0:00:19]} 47. Bc6 {[%emt 0:00:07]} Ra7 {[%emt 0:00:47]} 48. Kg3 {[%emt 0:00:50]} Kf6 {[%emt 0:01:11]} 49. Be8 {[%emt 0:01:08]} h4+ {[%emt 0:01:57]} 50. Kg4 {[%emt 0:00:12]} Re7 {[%emt 0:01:38]} 51. Bc6 {[%emt 0:00:07]} Re1 {[%emt 0:05:20]} 52. Nxa5 {[%emt 0:09:29]} Rg1+ {[%emt 0:01:18]} 53. Kh3 {[%emt 0:00:07]} Kf5 {[%emt 0:02:13]} 54. Nc4 {[%emt 0:03:03]} Kf4 {[%emt 0:04:17]} 55. Nb6 {[%emt 0:02:29]} Ke3 {[%emt 0:02:46]} 56. a5 {[%emt 0:02:29]} Kf2 {[%emt 0:01:35]} 57. Bd7 {[%emt 0:03:23]} Rg3+ {[%emt 0:01:08]} 58. Kh2 {[%emt 0:00:03]} g4 {[%emt 0:00:49]} 59. Bxg4 {[%emt 0:00:04]} Rxg4 {[%emt 0:00:14]} 60. a6 {[%emt 0:00:15]} Rg7 {[%emt 0:00:18]} 61. Kh3 {[%emt 0:04:01]} Ra7 {[%emt 0:00:28]} 62. Kxh4 {[%emt 0:00:07]} Rxa6 {[%emt 0:00:13]} 63. Nd7 {[%emt 0:00:42]} Rg6 {[%emt 0:01:03]} 64. Ne5 {[%emt 0:01:11]} Rg1 {[%emt 0:00:48]} 65. Kh5 {[%emt 0:04:59]} Ke3 {[%emt 0:00:40]} 66. Ng6 {[%emt 0:03:07]} Ke4 {[%emt 0:01:08]} 67. Ne7 {[%emt 0:03:01]} Ke5 {[%emt 0:02:09]} 68. Kh6 {[%emt 0:00:51]} Ke6 {[%emt 0:02:30]} 69. Nc6 {[%emt 0:01:04]} Kf6 {[%emt 0:01:41]} 70. Kh5 {[%emt 0:00:18]} Rg5+ {[%emt 0:00:31]} 71. Kh6 {[%emt 0:00:50]} Rc5 {[%emt 0:00:23]} 72. Nb4 {[%emt 0:00:20]} Rb5 {[%emt 0:00:51]} 73. Nd3 {[%emt 0:00:21]} Rb3 {[%emt 0:00:25]} 74. Nf4 {[%emt 0:00:22]} Rf3 {[%emt 0:00:31]} 75. Nh5+ {[%emt 0:00:29]} Kf5 {[%emt 0:00:20]} 76. Ng7+ {[%emt 0:00:11]} Kf6 {[%emt 0:00:35]} 77. Nh5+ {[%emt 0:00:05]} Kf5 {[%emt 0:00:07]} 78. Ng7+ {[%emt 0:00:05]} Kg4 {[%emt 0:00:15]} 79. Kg6 {[%emt 0:00:18]} Ra3 {[%emt 0:00:45]} 80. Kf6 {[%emt 0:01:30]} Ra5 {[%emt 0:00:46]} 81. Ne6 {[%emt 0:00:37]} Rd5 {[%emt 0:00:31]} 82. Nc7 {[%emt 0:00:39]} Ra5 {[%emt 0:00:10]} 83. Ne6 {[%emt 0:00:10]} Rf5+ {[%emt 0:00:59]} 84. Ke7 {[%emt 0:00:53]} Kf3 {[%emt 0:00:20]} 85. Nd4+ 1/2-1/2

[Event "EYCC Girls-U16 2019"]
[Site "Bratislava"]
[Date "2019.08.02"]
[Round "1.3"]
[White "Korenova, Simona"]
[Black "Getman, Tatyana"]
[Result "0-1"]
[ECO "E20"]
[WhiteElo "1764"]
[BlackElo "2143"]
[Annotator "NA"]
[PlyCount "90"]
[EventDate "2019.08.02"]
[EventType "swiss"]
[EventCountry "SVK"]
[SourceTitle "playchess.com"]
[Source "ChessBase"]
[SourceQuality "1"]
[TimeControl "40/5400+30:1800+30"]

1. c4 {[%emt 0:00:00]} e6 {[%emt 0:00:00]} 2. d4 {[%emt 0:00:08]} Nf6 {[%emt 0:00:00]} 3. Nc3 {[%emt 0:00:23]} Bb4 {[%emt 0:00:00]} 4. Bd2 {[%emt 0:00:58]} O-O {[%emt 0:02:25]} 5. Nf3 {[%emt 0:01:04]} d5 {[%emt 0:00:29]} 6. e3 {[%emt 0:01:27]} b6 {[%emt 0:04:03]} 7. Bd3 {[%emt 0:02:58]} c5 {[%emt 0:06:39]} 8. O-O {[%emt 0:05:57]} Nc6 {[%emt 0:02:00]} 9. a3 {[%emt 0:06:30]} Ba5 {[%emt 0:01:26]} 10. Na4 {[%emt 0:06:28]} Bxd2 {[%emt 0:02:36]} 11. Qxd2 {[%emt 0:02:07]} cxd4 {[%emt 0:03:05]} 12. exd4 {[%emt 0:03:22]} dxc4 {[%emt 0:03:45]} 13. Bxc4 {[%emt 0:02:13]} Bb7 {[%emt 0:03:05]} 14. b4 {[%emt 0:06:47]} Ne7 {[%emt 0:05:29]} 15. Ne5 {[%emt 0:06:19]} b5 {[%emt 0:11:46]} 16. Nc5 {[%emt 0:11:38]} bxc4 {[%emt 0:04:00]} 17. Nxb7 {[%emt 0:00:29]} Qd5 {[%emt 0:00:09]} 18. Nc5 {[%emt 0:02:09]} Rfd8 {[%emt 0:02:33]} 19. Rfd1 {[%emt 0:03:48]} Nf5 {[%emt 0:00:44]} 20. Qc2 {[%emt 0:08:00]} Nxd4 {[%emt 0:02:19]} 21. Rxd4 {[%emt 0:12:37]} Qxd4 {[%emt 0:00:24]} 22. Re1 {[%emt 0:00:23]} c3 {[%emt 0:04:43]} 23. Nf3 {[%emt 0:02:39]} Qf4 {[%emt 0:02:46]} 24. Qxc3 {[%emt 0:01:45]} Rd5 {[%emt 0:02:07]} 25. Na6 {[%emt 0:04:46]} Rad8 {[%emt 0:01:10]} 26. Qc2 {[%emt 0:01:31]} h6 {[%emt 0:06:20]} 27. a4 {[%emt 0:02:57]} Qd6 {[%emt 0:04:51]} 28. b5 {[%emt 0:01:57]} Rd1 {[%emt 0:00:14]} 29. h3 {[%emt 0:00:42]} Rxe1+ {[%emt 0:00:13]} 30. Nxe1 {[%emt 0:00:10]} Qd1 {[%emt 0:01:09]} 31. Qxd1 {[%emt 0:01:08]} Rxd1 {[%emt 0:00:02]} 32. Kf1 {[%emt 0:00:13]} Ra1 {[%emt 0:01:25]} 33. Nc5 {[%emt 0:00:32]} Nd5 {[%emt 0:00:12]} 34. Ke2 {[%emt 0:01:34]} Nc3+ {[%emt 0:00:12]} 35. Kd3 {[%emt 0:00:20]} Nxa4 {[%emt 0:00:28]} 36. Nxa4 {[%emt 0:00:32]} Rxa4 {[%emt 0:00:09]} 37. Nc2 {[%emt 0:00:16]} Kf8 {[%emt 0:03:04]} 38. Kc3 {[%emt 0:01:03]} Ke7 {[%emt 0:00:23]} 39. Nb4 {[%emt 0:00:53]} Kd6 {[%emt 0:00:32]} 40. Kb3 {[%emt 0:00:00]} Ra1 {[%emt 0:00:00]} 41. Na6 {[%emt 0:03:50]} Rg1 {[%emt 0:00:40]} 42. g3 {[%emt 0:01:35]} Rg2 {[%emt 0:00:06]} 43. Kb4 {[%emt 0:00:22]} Rxf2 {[%emt 0:00:08]} 44. Ka5 {[%emt 0:00:17]} Rf3 {[%emt 0:00:19]} 45. Nb4 {[%emt 0:00:17]} Ra3# {[%emt 0:00:03]} 0-1

[Event "EYCC Girls-U16 2019"]
[Site "Bratislava"]
[Date "2019.08.02"]
[Round "1.4"]
[White "Vanduyfhuys, Daria"]
[Black "Pecorini, Angie"]
[Result "0-1"]
[ECO "A40"]
[WhiteElo "2114"]
[BlackElo "1781"]
[Annotator "NA"]
[PlyCount "149"]
[EventDate "2019.08.02"]
[EventType "swiss"]
[EventCountry "SVK"]
[SourceTitle "playchess.com"]
[Source "ChessBase"]
[SourceQuality "1"]
[TimeControl "40/5400+30:1800+30"]

1. d4 {[%emt 0:00:00]} g6 {[%emt 0:00:00]} 2. c4 {[%emt 0:00:00]} Bg7 {[%emt 0:00:00]} 3. Nc3 {[%emt 0:00:00]} c5 {[%emt 0:00:00]} 4. Nf3 {[%emt 0:02:47]} cxd4 {[%emt 0:00:01]} 5. Nxd4 {[%emt 0:00:14]} Nc6 {[%emt 0:00:07]} 6. e3 {[%emt 0:09:18]} d6 {[%emt 0:01:03]} 7. Be2 {[%emt 0:00:37]} Nf6 {[%emt 0:00:52]} 8. O-O {[%emt 0:00:24]} O-O {[%emt 0:00:18]} 9. b3 {[%emt 0:10:32]} Qa5 {[%emt 0:01:09]} 10. Bb2 {[%emt 0:03:22]} a6 {[%emt 0:02:59]} 11. a3 {[%emt 0:07:45]} Rd8 {[%emt 0:14:11]} 12. b4 {[%emt 0:01:12]} Qg5 {[%emt 0:07:26]} 13. Nf3 {[%emt 0:04:19]} Qh5 {[%emt 0:09:35]} 14. Na4 {[%emt 0:09:16]} Bg4 {[%emt 0:08:00]} 15. h3 {[%emt 0:08:57]} Bxh3 {[%emt 0:05:42]} 16. gxh3 {[%emt 0:00:51]} Qxh3 {[%emt 0:00:11]} 17. Nh2 {[%emt 0:05:07]} Ne5 {[%emt 0:10:25]} 18. Nb6 {[%emt 0:08:04]} Rab8 {[%emt 0:01:13]} 19. Nd5 {[%emt 0:01:19]} e6 {[%emt 0:11:18]} 20. Nf4 {[%emt 0:02:48]} Qh4 {[%emt 0:00:51]} 21. Ng2 {[%emt 0:03:54]} Qe4 {[%emt 0:04:36]} 22. Qd4 {[%emt 0:02:38]} Qc2 {[%emt 0:08:04]} 23. Rfe1 {[%emt 0:10:47]} h5 {[%emt 0:04:05]} 24. Rac1 {[%emt 0:00:40]} Qf5 {[%emt 0:02:39]} 25. Nh4 {[%emt 0:02:28]} Qg5+ {[%emt 0:00:22]} 26. Ng2 {[%emt 0:00:11]} Neg4 {[%emt 0:04:02]} 27. Qf4 {[%emt 0:01:19]} Qxf4 {[%emt 0:00:35]} 28. Nxf4 {[%emt 0:00:15]} Nxh2 {[%emt 0:02:18]} 29. Bxf6 {[%emt 0:00:33]} Bxf6 {[%emt 0:00:42]} 30. Kxh2 {[%emt 0:00:06]} a5 {[%emt 0:00:19]} 31. Rb1 {[%emt 0:01:53]} axb4 {[%emt 0:00:57]} 32. axb4 {[%emt 0:00:04]} Ra8 {[%emt 0:00:16]} 33. Bf3 {[%emt 0:00:40]} Ra2 {[%emt 0:01:05]} 34. Re2 {[%emt 0:00:26]} Ra7 {[%emt 0:00:44]} 35. Rd2 {[%emt 0:01:02]} Rc8 {[%emt 0:00:27]} 36. Be2 {[%emt 0:00:25]} Ra3 {[%emt 0:00:24]} 37. Kg2 {[%emt 0:00:48]} Be5 {[%emt 0:00:33]} 38. Nd3 {[%emt 0:00:56]} Bc3 {[%emt 0:00:22]} 39. Rc2 {[%emt 0:01:00]} Rxc4 {[%emt 0:00:55]} 40. Rbc1 {[%emt 0:00:00]} Rc6 {[%emt 0:00:00]} 41. b5 {[%emt 0:01:03]} Rc7 {[%emt 0:03:44]} 42. Bf3 {[%emt 0:05:25]} b6 {[%emt 0:07:51]} 43. Be2 {[%emt 0:05:31]} Kg7 {[%emt 0:02:49]} 44. Rg1 {[%emt 0:11:46]} Kf6 {[%emt 0:06:53]} 45. Nb2 {[%emt 0:01:28]} Ra2 {[%emt 0:01:39]} 46. Rb1 {[%emt 0:01:26]} Rc5 {[%emt 0:01:57]} 47. Bd3 {[%emt 0:01:42]} Ke7 {[%emt 0:06:12]} 48. Nd1 {[%emt 0:03:45]} Rxc2 {[%emt 0:01:21]} 49. Bxc2 {[%emt 0:00:04]} Ba5 {[%emt 0:00:58]} 50. Bd3 {[%emt 0:00:27]} f5 {[%emt 0:00:41]} 51. Nb2 {[%emt 0:02:06]} d5 {[%emt 0:00:41]} 52. Na4 {[%emt 0:01:50]} Rc8 {[%emt 0:00:07]} 53. f4 {[%emt 0:00:07]} Kf6 {[%emt 0:01:44]} 54. Kf2 {[%emt 0:01:14]} e5 {[%emt 0:00:52]} 55. Rb2 {[%emt 0:01:12]} g5 {[%emt 0:00:27]} 56. fxg5+ {[%emt 0:00:59]} Kxg5 {[%emt 0:00:06]} 57. Kg3 {[%emt 0:00:14]} Rc1 {[%emt 0:01:05]} 58. Rc2 {[%emt 0:00:56]} h4+ {[%emt 0:00:24]} 59. Kg2 {[%emt 0:00:20]} Rxc2+ {[%emt 0:00:29]} 60. Bxc2 {[%emt 0:00:06]} f4 {[%emt 0:00:31]} 61. e4 {[%emt 0:00:35]} dxe4 {[%emt 0:00:37]} 62. Bxe4 {[%emt 0:00:03]} Kg4 {[%emt 0:00:12]} 63. Nb2 {[%emt 0:00:40]} h3+ {[%emt 0:00:46]} 64. Kf1 {[%emt 0:01:33]} Bc3 {[%emt 0:00:21]} 65. Nd3 {[%emt 0:00:25]} f3 {[%emt 0:00:42]} 66. Nf2+ {[%emt 0:00:35]} Kg3 {[%emt 0:00:13]} 67. Bf5 {[%emt 0:00:26]} h2 {[%emt 0:00:24]} 68. Nh1+ {[%emt 0:00:26]} Kf4 {[%emt 0:00:26]} 69. Be6 {[%emt 0:00:33]} e4 {[%emt 0:00:38]} 70. Bc4 {[%emt 0:00:22]} e3 {[%emt 0:00:38]} 71. Bd3 {[%emt 0:00:22]} Ke5 {[%emt 0:00:32]} 72. Ng3 {[%emt 0:00:37]} Kd4 {[%emt 0:00:41]} 73. Be2 {[%emt 0:00:43]} fxe2+ {[%emt 0:00:28]} 74. Kxe2 {[%emt 0:00:03]} Bd2 {[%emt 0:00:17]} 75. Kf3 {[%emt 0:00:28]} 0-1

[Event "EYCC Girls-U16 2019"]
[Site "Bratislava"]
[Date "2019.08.02"]
[Round "1.5"]
[White "Dubovyk, Anastasiia"]
[Black "Ciolacu, Alessia-Mihaela"]
[Result "1/2-1/2"]
[ECO "C61"]
[WhiteElo "1824"]
[BlackElo "2199"]
[Annotator "NA"]
[PlyCount "88"]
[EventDate "2019.08.02"]
[EventType "swiss"]
[EventCountry "SVK"]
[SourceTitle "playchess.com"]
[Source "ChessBase"]
[SourceQuality "1"]
[TimeControl "40/5400+30:1800+30"]

1. e4 {[%emt 0:00:00]} e5 {[%emt 0:00:00]} 2. Nf3 {[%emt 0:00:00]} Nc6 {[%emt 0:00:00]} 3. Bb5 {[%emt 0:00:00]} Nd4 {[%emt 0:00:00]} 4. Nxd4 {[%emt 0:00:00]} exd4 {[%emt 0:00:02]} 5. O-O {[%emt 0:00:22]} Bc5 {[%emt 0:00:13]} 6. c3 {[%emt 0:01:11]} c6 {[%emt 0:00:50]} 7. Ba4 {[%emt 0:05:25]} d5 {[%emt 0:17:25]} 8. d3 {[%emt 0:07:32]} Ne7 {[%emt 0:12:30]} 9. Nd2 {[%emt 0:03:37]} Bb6 {[%emt 0:14:27]} 10. h3 {[%emt 0:04:43]} Be6 {[%emt 0:04:39]} 11. Bb3 {[%emt 0:08:19]} O-O {[%emt 0:06:33]} 12. Nf3 {[%emt 0:02:43]} dxc3 {[%emt 0:11:43]} 13. bxc3 {[%emt 0:00:25]} dxe4 {[%emt 0:05:11]} 14. dxe4 {[%emt 0:00:48]} Bxb3 {[%emt 0:01:58]} 15. Qxb3 {[%emt 0:04:03]} Ng6 {[%emt 0:04:05]} 16. Ba3 {[%emt 0:04:51]} Re8 {[%emt 0:00:18]} 17. Rad1 {[%emt 0:03:35]} Qf6 {[%emt 0:00:29]} 18. Rd7 {[%emt 0:06:18]} Nf4 {[%emt 0:02:45]} 19. c4 {[%emt 0:06:13]} Rxe4 {[%emt 0:03:28]} 20. c5 {[%emt 0:03:33]} Ba5 {[%emt 0:07:20]} 21. Qxb7 {[%emt 0:09:37]} Rae8 {[%emt 0:00:32]} 22. Qb3 {[%emt 0:02:24]} Qg6 {[%emt 0:00:46]} 23. g3 {[%emt 0:05:49]} Nxh3+ {[%emt 0:01:27]} 24. Kh2 {[%emt 0:03:04]} Qh5 {[%emt 0:00:24]} 25. Kg2 {[%emt 0:00:38]} Nf4+ {[%emt 0:00:14]} 26. Kg1 {[%emt 0:02:11]} R4e6 {[%emt 0:01:38]} 27. Rxa7 {[%emt 0:03:58]} Rh6 {[%emt 0:01:03]} 28. Nh4 {[%emt 0:01:55]} Bd8 {[%emt 0:00:38]} 29. Ra8 {[%emt 0:03:15]} g5 {[%emt 0:01:30]} 30. Qd1 {[%emt 0:04:08]} Ne2+ {[%emt 0:01:08]} 31. Kg2 {[%emt 0:00:20]} gxh4 {[%emt 0:00:34]} 32. Rxd8 {[%emt 0:00:38]} Rhe6 {[%emt 0:00:59]} 33. Qd7 {[%emt 0:01:17]} Nf4+ {[%emt 0:00:57]} 34. Kg1 {[%emt 0:01:29]} Ne2+ {[%emt 0:00:27]} 35. Kg2 {[%emt 0:00:06]} Kf8 {[%emt 0:00:38]} 36. Rxe8+ {[%emt 0:01:08]} Rxe8 {[%emt 0:00:01]} 37. Qxc6 {[%emt 0:01:01]} Re6 {[%emt 0:00:49]} 38. Qc8+ {[%emt 0:00:31]} Kg7 {[%emt 0:00:03]} 39. Bb2+ {[%emt 0:00:25]} Kh6 {[%emt 0:00:11]} 40. Qf8+ {[%emt 0:00:00]} Kg6 {[%emt 0:00:00]} 41. Qd8 {[%emt 0:10:35]} Nf4+ {[%emt 0:08:54]} 42. gxf4 {[%emt 0:02:50]} Qg4+ {[%emt 0:00:17]} 43. Kh1 {[%emt 0:00:36]} Qf3+ {[%emt 0:00:56]} 44. Kg1 {[%emt 0:00:37]} Qg4+ {[%emt 0:01:05]} 1/2-1/2

[Event "EYCC Girls-U16 2019"]
[Site "Bratislava"]
[Date "2019.08.02"]
[Round "1.6"]
[White "Waszczuk, Patrycja"]
[Black "Sleurs, Juliette"]
[Result "1-0"]
[ECO "C89"]
[WhiteElo "2119"]
[BlackElo "1834"]
[Annotator "NA"]
[PlyCount "63"]
[EventDate "2019.08.02"]
[EventType "swiss"]
[EventCountry "SVK"]
[SourceTitle "playchess.com"]
[Source "ChessBase"]
[SourceQuality "1"]
[TimeControl "40/5400+30:1800+30"]

1. e4 {[%emt 0:00:00]} e5 {[%emt 0:00:00]} 2. Nf3 {[%emt 0:00:00]} Nc6 {[%emt 0:00:00]} 3. Bb5 {[%emt 0:00:00]} a6 {[%emt 0:00:00]} 4. Ba4 {[%emt 0:00:00]} Nf6 {[%emt 0:00:00]} 5. O-O {[%emt 0:03:24]} Be7 {[%emt 0:00:54]} 6. Re1 {[%emt 0:00:30]} b5 {[%emt 0:00:25]} 7. Bb3 {[%emt 0:00:07]} O-O {[%emt 0:00:24]} 8. c3 {[%emt 0:00:19]} d5 {[%emt 0:00:21]} 9. exd5 {[%emt 0:00:25]} Nxd5 {[%emt 0:00:18]} 10. Nxe5 {[%emt 0:00:16]} Nxe5 {[%emt 0:00:09]} 11. Rxe5 {[%emt 0:00:05]} c6 {[%emt 0:00:31]} 12. d4 {[%emt 0:00:04]} Bd6 {[%emt 0:00:42]} 13. Re1 {[%emt 0:00:05]} Qh4 {[%emt 0:00:43]} 14. g3 {[%emt 0:00:03]} Qh3 {[%emt 0:00:15]} 15. Be3 {[%emt 0:00:11]} Bg4 {[%emt 0:15:19]} 16. Qd3 {[%emt 0:00:12]} f5 {[%emt 0:10:40]} 17. Qf1 {[%emt 0:02:27]} Qh5 {[%emt 0:01:52]} 18. f4 {[%emt 0:07:11]} Rae8 {[%emt 0:12:12]} 19. Nd2 {[%emt 0:03:05]} Re6 {[%emt 0:13:47]} 20. Bxd5 {[%emt 0:01:21]} cxd5 {[%emt 0:03:35]} 21. Qg2 {[%emt 0:07:44]} Re4 {[%emt 0:08:49]} 22. a4 {[%emt 0:08:56]} b4 {[%emt 0:12:15]} 23. Nxe4 {[%emt 0:00:37]} dxe4 {[%emt 0:02:05]} 24. c4 {[%emt 0:14:58]} Bf3 {[%emt 0:05:09]} 25. Qd2 {[%emt 0:01:04]} g5 {[%emt 0:01:40]} 26. b3 {[%emt 0:00:18]} Rf6 {[%emt 0:03:53]} 27. c5 {[%emt 0:10:03]} gxf4 {[%emt 0:01:18]} 28. Bxf4 {[%emt 0:04:02]} Bxf4 {[%emt 0:02:17]} 29. Qxf4 {[%emt 0:00:08]} Rg6 {[%emt 0:01:06]} 30. c6 {[%emt 0:01:48]} Qh3 {[%emt 0:00:45]} 31. Ra2 {[%emt 0:00:29]} Rg4 {[%emt 0:00:29]} 32. c7 {[%emt 0:00:20]} 1-0